Workbook

Sheet Macro 4
D1: PERCEPCIONES | H1: DEDUCCIONES | M1: Pago semanal
A2: No. | B2: Salario Diario | C2: S.D.I. | D2: Antigüedad | E2: Días Laborados | F2: SALARIO SEMANAL SIN DEDUCCIONES | G2: total percepciones | H2: imss | I2: isr | J2: crédito infonavit | K2: total deducciones | L2: total recibido
A3: HEZ0043 | B3: =+Tabla1452[[#This Row],[S.D.I.]]/1.0452 -> 232.2672353 | C3: =+Tabla1452[[#This Row],[SALARIO SEMANAL SIN DEDUCCIONES ]]/7 -> 242.7657143 | D3: P25W | E3: 7 | F3: 1699.36 | G3: =+Tabla1452[[#This Row],[SALARIO SEMANAL SIN DEDUCCIONES ]] -> 1699.36 | H3: 21.24 | I3: 78.12 | K3: =+H3+I3+J3 -> 99.36 | L3: =+Tabla1452[[#This Row],[total percepciones ]]-K3 -> 1600 | M3: 1600
A4: HEZ0036 | B4: =+Tabla1452[[#This Row],[S.D.I.]]/1.0452 -> 181.4840632 | C4: =+Tabla1452[[#This Row],[SALARIO SEMANAL SIN DEDUCCIONES ]]/7 -> 189.6871429 | D4: P47W | E4: 7 | F4: 1327.81 | G4: =+Tabla1452[[#This Row],[SALARIO SEMANAL SIN DEDUCCIONES ]] -> 1327.81 | H4: 16.6 | I4: 11.21 | K4: 27.81 | L4: =+Tabla1452[[#This Row],[total percepciones ]]-K4 -> 1300 | M4: 1300
B5: =+Tabla1452[[#This Row],[S.D.I.]]/1.0452 -> 215.4269859 | C5: =+Tabla1452[[#This Row],[SALARIO SEMANAL SIN DEDUCCIONES ]]/7 -> 225.1642857 | D5: P9W | E5: 7 | F5: 1576.15 | G5: =+Tabla1452[[#This Row],[SALARIO SEMANAL SIN DEDUCCIONES ]] -> 1576.15 | H5: 19.7 | I5: 56.45 | K5: 76.15 | L5: =+Tabla1452[[#This Row],[total percepciones ]]-K5 -> 1500 | M5: 1500
B6: =+Tabla1452[[#This Row],[S.D.I.]]/1.0452 -> 199.8728883 | C6: =+Tabla1452[[#This Row],[SALARIO SEMANAL SIN DEDUCCIONES ]]/7 -> 208.9071429 | E6: 7 | F6: 1462.35 | G6: =+Tabla1452[[#This Row],[SALARIO SEMANAL SIN DEDUCCIONES ]] -> 1462.35 | H6: 18.28 | I6: 44.07 | K6: =+H6+I6+J6 -> 62.35 | L6: =+Tabla1452[[#This Row],[total percepciones ]]-K6 -> 1400 | M6: 1400
A7: HEZ0025 | B7: =+Tabla1452[[#This Row],[S.D.I.]]/1.0452 -> 359.4650375 | C7: =+Tabla1452[[#This Row],[SALARIO SEMANAL SIN DEDUCCIONES ]]/7 -> 375.7128571 | D7: P107W | E7: 7 | F7: 2629.99 | G7: =+Tabla1452[[#This Row],[SALARIO SEMANAL SIN DEDUCCIONES ]] -> 2629.99 | H7: 61.42 | I7: 268.57 | K7: 329.99 | L7: =+Tabla1452[[#This Row],[total percepciones ]]-K7 -> 2300 | M7: 2300
A8: HEZ0016 | B8: =+Tabla1452[[#This Row],[S.D.I.]]/1.0452 -> 404.753704 | C8: =+Tabla1452[[#This Row],[SALARIO SEMANAL SIN DEDUCCIONES ]]/7 -> 423.0485714 | D8: P107W | E8: 7 | F8: 2961.34 | G8: =+Tabla1452[[#This Row],[SALARIO SEMANAL SIN DEDUCCIONES ]] -> 2961.34 | H8: 76.61 | I8: 334.73 | K8: 411.34 | L8: =+Tabla1452[[#This Row],[total percepciones ]]-K8 -> 2550 | M8: 2550
A9: HEZ0041 | B9: =+Tabla1452[[#This Row],[S.D.I.]]/1.0452 -> 215.4269859 | C9: =+Tabla1452[[#This Row],[SALARIO SEMANAL SIN DEDUCCIONES ]]/7 -> 225.1642857 | D9: P26W | E9: 7 | F9: 1576.15 | G9: =+Tabla1452[[#This Row],[SALARIO SEMANAL SIN DEDUCCIONES ]] -> 1576.15 | H9: 19.7 | I9: 56.45 | K9: 76.15 | L9: =+Tabla1452[[#This Row],[total percepciones ]]-K9 -> 1500 | M9: 1500
A10: HEZ0008 | B10: =+Tabla1452[[#This Row],[S.D.I.]]/1.0452 -> 324.1908589 | C10: =+Tabla1452[[#This Row],[SALARIO SEMANAL SIN DEDUCCIONES ]]/7 -> 338.8442857 | D10: P194W | E10: 7 | F10: 2371.91 | G10: =+Tabla1452[[#This Row],[SALARIO SEMANAL SIN DEDUCCIONES ]] -> 2371.91 | H10: 49.59 | I10: 222.32 | K10: 271.91 | L10: =+Tabla1452[[#This Row],[total percepciones ]]-K10 -> 2100 | M10: 2100
A11: HEZ0001 | B11: =+Tabla1452[[#This Row],[S.D.I.]]/1.0452 -> 832.4148488 | C11: =+Tabla1452[[#This Row],[SALARIO SEMANAL SIN DEDUCCIONES ]]/7 -> 870.04 | D11: P222W | E11: 7 | F11: 6090.28 | G11: =+Tabla1452[[#This Row],[SALARIO SEMANAL SIN DEDUCCIONES ]] -> 6090.28 | H11: 76.13 | I11: 1014.15 | K11: 1090.28 | L11: =+Tabla1452[[#This Row],[total percepciones ]]-K11 -> 5000 | M11: 5000
A12: HEZ0010 | B12: =+Tabla1452[[#This Row],[S.D.I.]]/1.0452 -> 832.4148488 | C12: =+Tabla1452[[#This Row],[SALARIO SEMANAL SIN DEDUCCIONES ]]/7 -> 870.04 | D12: P181W | E12: 7 | F12: 6090.28 | G12: =+Tabla1452[[#This Row],[SALARIO SEMANAL SIN DEDUCCIONES ]] -> 6090.28 | H12: 76.13 | I12: 1014.15 | K12: 1090.28 | L12: =+Tabla1452[[#This Row],[total percepciones ]]-K12 -> 5000 | M12: 5000
A13: HEZ0014 | B13: =+Tabla1452[[#This Row],[S.D.I.]]/1.0452 -> 395.5237549 | C13: =+Tabla1452[[#This Row],[SALARIO SEMANAL SIN DEDUCCIONES ]]/7 -> 413.4014286 | D13: P131W | E13: 7 | F13: 2893.81 | G13: =+Tabla1452[[#This Row],[SALARIO SEMANAL SIN DEDUCCIONES ]] -> 2893.81 | H13: 73.51 | I13: 320.3 | K13: 393.81 | L13: =+Tabla1452[[#This Row],[total percepciones ]]-K13 -> 2500 | M13: 2500
A14: HEZ0002 | B14: =+Tabla1452[[#This Row],[S.D.I.]]/1.0452 -> 395.5237549 | C14: =+Tabla1452[[#This Row],[SALARIO SEMANAL SIN DEDUCCIONES ]]/7 -> 413.4014286 | D14: P215W | E14: 7 | F14: 2893.81 | G14: =+Tabla1452[[#This Row],[SALARIO SEMANAL SIN DEDUCCIONES ]] -> 2893.81 | H14: 73.51 | I14: 320.3 | K14: 393.81 | L14: =+Tabla1452[[#This Row],[total percepciones ]]-K14 -> 2500 | M14: 2500
A15: HEZ0007 | B15: =+Tabla1452[[#This Row],[S.D.I.]]/1.0452 -> 324.1908589 | C15: =+Tabla1452[[#This Row],[SALARIO SEMANAL SIN DEDUCCIONES ]]/7 -> 338.8442857 | D15: P187W | E15: 7 | F15: 2371.91 | G15: =+Tabla1452[[#This Row],[SALARIO SEMANAL SIN DEDUCCIONES ]] -> 2371.91 | H15: 49.59 | I15: 222.32 | K15: 271.91 | L15: =+Tabla1452[[#This Row],[total percepciones ]]-K15 -> 2100 | M15: 2100
A16: HEZ0024 | B16: =+Tabla1452[[#This Row],[S.D.I.]]/1.0452 -> 551.2943524 | C16: =+Tabla1452[[#This Row],[SALARIO SEMANAL SIN DEDUCCIONES ]]/7 -> 576.2128571 | D16: P96W | E16: 7 | F16: 4033.49 | G16: =+Tabla1452[[#This Row],[SALARIO SEMANAL SIN DEDUCCIONES ]] -> 4033.49 | H16: 125.75 | I16: 563.74 | J16: 344 | K16: 1033.49 | L16: =+Tabla1452[[#This Row],[total percepciones ]]-K16 -> 3000 | M16: 3000
A17: HEZ0003 | B17: =+Tabla1452[[#This Row],[S.D.I.]]/1.0452 -> 341.9154229 | C17: =+Tabla1452[[#This Row],[SALARIO SEMANAL SIN DEDUCCIONES ]]/7 -> 357.37 | D17: P128W | E17: 7 | F17: 2501.59 | G17: =+Tabla1452[[#This Row],[SALARIO SEMANAL SIN DEDUCCIONES ]] -> 2501.59 | H17: 55.53 | I17: 245.56 | K17: 301.09 | L17: =+Tabla1452[[#This Row],[total percepciones ]]-K17 -> 2200.5 | M17: 2200.5
B18: =+Tabla1452[[#This Row],[S.D.I.]]/1.0452 -> 181.4840632 | C18: =+Tabla1452[[#This Row],[SALARIO SEMANAL SIN DEDUCCIONES ]]/7 -> 189.6871429 | E18: 7 | F18: 1327.81 | G18: =+Tabla1452[[#This Row],[SALARIO SEMANAL SIN DEDUCCIONES ]] -> 1327.81 | H18: 19.7 | I18: 56.45 | K18: 76.15 | L18: =+Tabla1452[[#This Row],[total percepciones ]]-K18 -> 1251.66 | M18: 1300
A19: HEZ0037 | B19: =+Tabla1452[[#This Row],[S.D.I.]]/1.0452 -> 247.840468 | C19: =+Tabla1452[[#This Row],[SALARIO SEMANAL SIN DEDUCCIONES ]]/7 -> 259.0428571 | D19: P29W | E19: 7 | F19: 1813.3 | G19: =+Tabla1452[[#This Row],[SALARIO SEMANAL SIN DEDUCCIONES ]] -> 1813.3 | H19: 22.67 | I19: 140.63 | K19: 163.3 | L19: =+Tabla1452[[#This Row],[total percepciones ]]-K19 -> 1650 | M19: 1650
B20: =+Tabla1452[[#This Row],[S.D.I.]]/1.0452 -> 199.8728883 | C20: =+Tabla1452[[#This Row],[SALARIO SEMANAL SIN DEDUCCIONES ]]/7 -> 208.9071429 | E20: 7 | F20: 1462.35 | G20: =+Tabla1452[[#This Row],[SALARIO SEMANAL SIN DEDUCCIONES ]] -> 1462.35 | H20: 18.28 | I20: 44.07 | K20: 62.35 | L20: =+Tabla1452[[#This Row],[total percepciones ]]-K20 -> 1400 | M20: 1400
A21: HEZ0021 | B21: =+Tabla1452[[#This Row],[S.D.I.]]/1.0452 -> 350.6464928 | C21: =+Tabla1452[[#This Row],[SALARIO SEMANAL SIN DEDUCCIONES ]]/7 -> 366.4957143 | D21: P99W | E21: 7 | F21: 2565.47 | G21: =+Tabla1452[[#This Row],[SALARIO SEMANAL SIN DEDUCCIONES ]] -> 2565.47 | H21: 58.46 | I21: 257.01 | K21: 315.47 | L21: =+Tabla1452[[#This Row],[total percepciones ]]-K21 -> 2250 | M21: 2250
A22: HEZ0022 | B22: =+Tabla1452[[#This Row],[S.D.I.]]/1.0452 -> 487.8054781 | C22: =+Tabla1452[[#This Row],[SALARIO SEMANAL SIN DEDUCCIONES ]]/7 -> 509.8542857 | D22: P98W | E22: 7 | F22: 3568.98 | G22: =+Tabla1452[[#This Row],[SALARIO SEMANAL SIN DEDUCCIONES ]] -> 3568.98 | H22: 104.46 | I22: 464.52 | K22: 568.98 | L22: =+Tabla1452[[#This Row],[total percepciones ]]-K22 -> 3000 | M22: 3000
B23: =+Tabla1452[[#This Row],[S.D.I.]]/1.0452 -> 181.4840632 | C23: =+Tabla1452[[#This Row],[SALARIO SEMANAL SIN DEDUCCIONES ]]/7 -> 189.6871429 | E23: 7 | F23: 1327.81 | G23: =+Tabla1452[[#This Row],[SALARIO SEMANAL SIN DEDUCCIONES ]] -> 1327.81 | H23: 19.7 | I23: 56.45 | K23: 76.15 | L23: =+Tabla1452[[#This Row],[total percepciones ]]-K23 -> 1251.66 | M23: 1300
A24: HEZ0042 | B24: =+Tabla1452[[#This Row],[S.D.I.]]/1.0452 -> 272.9252091 | C24: =+Tabla1452[[#This Row],[SALARIO SEMANAL SIN DEDUCCIONES ]]/7 -> 285.2614286 | D24: P18W | E24: 7 | F24: 1996.83 | G24: =+Tabla1452[[#This Row],[SALARIO SEMANAL SIN DEDUCCIONES ]] -> 1996.83 | H24: 24.96 | I24: 102.22 | J24: 429.65 | K24: 556.83 | L24: =+Tabla1452[[#This Row],[total percepciones ]]-K24 -> 1440 | M24: 1400
A25: HEZ0028 | B25: =+Tabla1452[[#This Row],[S.D.I.]]/1.0452 -> 215.4269859 | C25: =+Tabla1452[[#This Row],[SALARIO SEMANAL SIN DEDUCCIONES ]]/7 -> 225.1642857 | D25: P32W | E25: 7 | F25: 1576.15 | G25: =+Tabla1452[[#This Row],[SALARIO SEMANAL SIN DEDUCCIONES ]] -> 1576.15 | H25: 19.7 | I25: 56.45 | K25: 76.15 | L25: =+Tabla1452[[#This Row],[total percepciones ]]-K25 -> 1500 | M25: 1500
A26: HEZ0015 | B26: =+Tabla1452[[#This Row],[S.D.I.]]/1.0452 -> 450.8925154 | C26: =+Tabla1452[[#This Row],[SALARIO SEMANAL SIN DEDUCCIONES ]]/7 -> 471.2728571 | D26: P28W | E26: 7 | F26: 3298.91 | G26: =+Tabla1452[[#This Row],[SALARIO SEMANAL SIN DEDUCCIONES ]] -> 3298.91 | H26: 92.08 | I26: 406.83 | K26: 498.91 | L26: =+Tabla1452[[#This Row],[total percepciones ]]-K26 -> 2800 | M26: 2800
A27: HEZ0038 | B27: =+Tabla1452[[#This Row],[S.D.I.]]/1.0452 -> 381.4321251 | C27: =+Tabla1452[[#This Row],[SALARIO SEMANAL SIN DEDUCCIONES ]]/7 -> 398.6728571 | D27: P29W | E27: 7 | F27: 2790.71 | G27: =+Tabla1452[[#This Row],[SALARIO SEMANAL SIN DEDUCCIONES ]] -> 2790.71 | H27: 68.79 | I27: 297.37 | J27: =1898.2/4 -> 474.55 | K27: 840.71 | L27: =+Tabla1452[[#This Row],[total percepciones ]]-H27-I27-J27 -> 1950 | M27: 1950
A28: HEZ0018 | B28: =+Tabla1452[[#This Row],[S.D.I.]]/1.0452 -> 395.5237549 | C28: =+Tabla1452[[#This Row],[SALARIO SEMANAL SIN DEDUCCIONES ]]/7 -> 413.4014286 | D28: P99W | E28: 7 | F28: 2893.81 | G28: =+Tabla1452[[#This Row],[SALARIO SEMANAL SIN DEDUCCIONES ]] -> 2893.81 | H28: 73.51 | I28: 320.3 | K28: 393.81 | L28: =+Tabla1452[[#This Row],[total percepciones ]]-K28 -> 2500 | M28: 2500
B29: =+Tabla1452[[#This Row],[S.D.I.]]/1.0452 -> 359.4650375 | C29: =+Tabla1452[[#This Row],[SALARIO SEMANAL SIN DEDUCCIONES ]]/7 -> 375.7128571 | E29: 7 | F29: 2629.99 | G29: 2629.99 | H29: 61.42 | I29: 268.57 | K29: 329.99 | L29: =+Tabla1452[[#This Row],[total percepciones ]]-K29 -> 2300 | M29: 2300
A30: 28 trabajadores | F30: =SUM(F3:F29) -> 69732.35 | G30: =SUM(G3:G29) -> 69732.35 | H30: 1397.02 | I30: 7243.31 | J30: 1248.2 | K30: 9888.53 | L30: 59843.82 | M30: 59900.5
